[Event "IV Pullman Blitz 2022"]
[Site "Riga, Latvia"]
[Date "2022.02.20"]
[Round "8.1"]
[White "Antoms, Guntars"]
[Black "Golubovskis, Maksims"]
[Result "1-0"]
[TimeControl "180+2"]
[WhiteTitle "IM"]
[BlackTitle "FM"]
[WhiteElo "2231"]
[BlackElo "2066"]

1. e4 c5 2. Nc3 {[%clk 00:03:04]} {[%emt 00:00:02]} d6 {[%clk 00:03:06]} 3. f4
{[%clk 00:03:04]} {[%emt 00:00:02]} g6 {[%clk 00:03:07]} 4. Nf3 {[%clk
00:03:05]} {[%emt 00:00:02]} Bg7 {[%clk 00:03:08]} 5. Bc4 {[%clk 00:03:06]}
{[%emt 00:00:01]} Nc6 {[%clk 00:03:09]} {[%emt 00:00:01]} 6. O-O {[%clk
00:03:06]} {[%emt 00:00:02]} Nf6 {[%clk 00:03:11]} {[%emt 00:00:01]} 7. d3
{[%clk 00:03:05]} {[%emt 00:00:03]} O-O {[%clk 00:03:11]} {[%emt 00:00:01]} 8.
f5 {[%clk 00:03:06]} {[%emt 00:00:01]} e6 {[%clk 00:03:12]} 9. fxg6 {[%clk
00:03:02]} {[%emt 00:00:06]} fxg6 {[%clk 00:02:42]} {[%emt 00:00:33]} 10. Qe1
{[%clk 00:02:52]} {[%emt 00:00:12]} d5 {[%clk 00:02:21]} {[%emt 00:00:23]} 11.
Bb3 {[%clk 00:02:40]} {[%emt 00:00:14]} Nd4 {[%clk 00:01:12]} {[%emt 00:01:11]}
12. Qh4 {[%clk 00:02:20]} {[%emt 00:00:22]} Nxb3 {[%clk 00:01:02]} {[%emt
00:00:13]} 13. axb3 {[%clk 00:02:19]} {[%emt 00:00:03]} d4 {[%clk 00:00:36]}
{[%emt 00:00:28]} 14. Ne2 {[%clk 00:02:13]} {[%emt 00:00:07]} Nh5 {[%clk
00:00:25]} {[%emt 00:00:13]} 15. Bg5 {[%clk 00:02:12]} {[%emt 00:00:04]} Bf6
{[%clk 00:00:16]} {[%emt 00:00:10]} 16. g4 {[%clk 00:01:49]} {[%emt 00:00:24]}
Ng7 {[%clk 00:00:15]} {[%emt 00:00:04]} 17. e5 {[%clk 00:01:50]} Bxg5 {[%clk
00:00:11]} {[%emt 00:00:05]} 18. Nxg5 {[%clk 00:01:51]} {[%emt 00:00:02]} h5
{[%clk 00:00:11]} {[%emt 00:00:01]} 19. Rxf8+ {[%clk 00:01:47]} {[%emt
00:00:07]} Qxf8 {[%clk 00:00:11]} {[%emt 00:00:02]} 20. Rf1 {[%clk 00:01:43]}
{[%emt 00:00:05]} Qd8 {[%clk 00:00:12]} {[%emt 00:00:02]} 21. Ng3 {[%clk
00:01:40]} {[%emt 00:00:05]} Qd5 {[%clk 00:00:04]} {[%emt 00:00:10]} 22. gxh5
{[%clk 00:01:29]} {[%emt 00:00:13]} 1-0

[Event "IV Pullman Blitz 2022"]
[Site "Riga, Latvia"]
[Date "2022.02.20"]
[Round "8.2"]
[White "Batashevs, Arsens"]
[Black "Gorozhankina, Julia"]
[Result "1/2-1/2"]
[TimeControl "180+2"]
[BlackTitle "WFM"]
[WhiteElo "2113"]
[BlackElo "2033"]

1. Nf3 {[%clk 00:03:03]} Nf6 {[%clk 00:03:03]} {[%emt 00:00:01]} 2. c4 {[%clk
00:03:04]} {[%emt 00:00:02]} g6 {[%clk 00:03:04]} {[%emt 00:00:01]} 3. g3
{[%clk 00:03:05]} Bg7 {[%clk 00:03:05]} {[%emt 00:00:01]} 4. Bg2 {[%clk
00:03:06]} d5 {[%clk 00:03:07]} 5. cxd5 {[%emt 00:00:01]} Nxd5 {[%clk
00:03:08]} 6. O-O {[%clk 00:03:07]} {[%emt 00:00:01]} O-O {[%clk 00:03:08]}
{[%emt 00:00:01]} 7. Nc3 {[%clk 00:03:08]} {[%emt 00:00:01]} Nb6 {[%clk
00:03:10]} 8. d3 {[%clk 00:03:04]} {[%emt 00:00:06]} Nc6 {[%clk 00:03:11]} 9.
Be3 {[%clk 00:02:50]} {[%emt 00:00:15]} e5 {[%clk 00:03:08]} {[%emt 00:00:05]}
10. Rc1 {[%clk 00:02:46]} {[%emt 00:00:07]} Nd4 {[%clk 00:02:55]} {[%emt
00:00:14]} 11. Bxd4 {[%clk 00:02:34]} {[%emt 00:00:14]} exd4 {[%clk 00:02:56]}
{[%emt 00:00:01]} 12. Ne4 {[%clk 00:02:34]} {[%emt 00:00:01]} c6 {[%clk
00:02:48]} {[%emt 00:00:10]} 13. Nc5 {[%clk 00:02:33]} {[%emt 00:00:03]} Re8
{[%clk 00:02:44]} {[%emt 00:00:06]} 14. Re1 {[%clk 00:02:34]} {[%emt 00:00:01]}
Rb8 {[%clk 00:02:33]} {[%emt 00:00:14]} 15. Qd2 {[%clk 00:02:25]} {[%emt
00:00:11]} Bg4 {[%clk 00:02:10]} {[%emt 00:00:24]} 16. a4 {[%clk 00:02:00]}
{[%emt 00:00:27]} Nd7 {[%clk 00:01:58]} {[%emt 00:00:14]} 17. Nb3 {[%clk
00:01:56]} {[%emt 00:00:06]} Bxf3 {[%clk 00:01:31]} {[%emt 00:00:29]} 18. Bxf3
{[%clk 00:01:57]} {[%emt 00:00:01]} Ne5 {[%clk 00:01:32]} {[%emt 00:00:01]} 19.
Bg2 {[%clk 00:01:58]} {[%emt 00:00:01]} Qd6 {[%clk 00:01:11]} {[%emt 00:00:23]}
20. Qa5 {[%clk 00:01:26]} {[%emt 00:00:34]} a6 {[%clk 00:00:48]} {[%emt
00:00:25]} 21. Qc5 {[%clk 00:01:18]} {[%emt 00:00:09]} Qxc5 {[%clk 00:00:31]}
{[%emt 00:00:19]} 22. Nxc5 {[%clk 00:01:19]} {[%emt 00:00:01]} Bf8 {[%clk
00:00:32]} {[%emt 00:00:01]} 23. Kf1 {[%clk 00:00:46]} {[%emt 00:00:34]} Red8
{[%clk 00:00:28]} {[%emt 00:00:06]} 24. Rc2 {[%clk 00:00:30]} {[%emt 00:00:18]}
Nd7 {[%clk 00:00:26]} {[%emt 00:00:04]} 25. Nxd7 {[%clk 00:00:17]} {[%emt
00:00:15]} Rxd7 {[%clk 00:00:27]} 26. a5 {[%clk 00:00:14]} {[%emt 00:00:05]} c5
{[%clk 00:00:27]} {[%emt 00:00:02]} 27. Rec1 {[%clk 00:00:13]} {[%emt
00:00:02]} Rdd8 {[%clk 00:00:19]} {[%emt 00:00:11]} 1/2-1/2

[Event "IV Pullman Blitz 2022"]
[Site "Riga, Latvia"]
[Date "2022.02.20"]
[Round "8.3"]
[White "Berzinsh, Roland"]
[Black "Kretainis, Kristaps"]
[Result "1-0"]
[TimeControl "180+2"]
[WhiteTitle "IM"]
[WhiteElo "2285"]
[BlackElo "2101"]

1. d4 {[%clk 00:03:01]} {[%emt 00:00:02]} Nf6 {[%clk 00:03:03]} {[%emt
00:00:02]} 2. Bf4 {[%clk 00:03:02]} {[%emt 00:00:01]} e6 {[%clk 00:03:03]}
{[%emt 00:00:03]} 3. e3 {[%clk 00:03:02]} {[%emt 00:00:01]} b6 {[%clk
00:03:04]} {[%emt 00:00:02]} 4. Nf3 {[%clk 00:02:56]} {[%emt 00:00:07]} Bb7
{[%clk 00:03:05]} {[%emt 00:00:01]} 5. c4 {[%clk 00:02:57]} Be7 {[%clk
00:03:00]} {[%emt 00:00:08]} 6. h3 {[%clk 00:02:55]} {[%emt 00:00:03]} O-O
{[%clk 00:02:58]} {[%emt 00:00:04]} 7. Nc3 {[%clk 00:02:56]} d5 {[%clk
00:02:59]} {[%emt 00:00:02]} 8. cxd5 {[%clk 00:02:51]} {[%emt 00:00:07]} Nxd5
{[%clk 00:02:59]} {[%emt 00:00:02]} 9. Nxd5 {[%clk 00:02:49]} {[%emt 00:00:04]}
Bxd5 {[%clk 00:02:57]} {[%emt 00:00:04]} 10. Bd3 {[%clk 00:02:46]} {[%emt
00:00:05]} Bb4+ {[%clk 00:02:53]} {[%emt 00:00:06]} 11. Ke2 {[%clk 00:02:46]}
{[%emt 00:00:02]} Bd6 {[%clk 00:02:25]} {[%emt 00:00:29]} 12. Bxd6 {[%clk
00:02:13]} {[%emt 00:00:35]} cxd6 {[%clk 00:02:23]} {[%emt 00:00:04]} 13. Qc2
{[%clk 00:02:07]} {[%emt 00:00:07]} f5 {[%clk 00:02:07]} {[%emt 00:00:19]} 14.
e4 {[%clk 00:01:53]} {[%emt 00:00:16]} Bb7 {[%clk 00:01:56]} {[%emt 00:00:14]}
15. Rhe1 {[%clk 00:01:45]} {[%emt 00:00:10]} Qf6 {[%clk 00:01:40]} {[%emt
00:00:17]} 16. Kf1 {[%clk 00:01:38]} {[%emt 00:00:08]} Nc6 {[%clk 00:01:30]}
{[%emt 00:00:13]} 17. Qa4 {[%clk 00:01:09]} {[%emt 00:00:32]} a6 {[%clk
00:01:08]} {[%emt 00:00:24]} 18. d5 {[%clk 00:01:10]} b5 {[%clk 00:00:57]}
{[%emt 00:00:13]} 19. Qb3 {[%clk 00:00:59]} {[%emt 00:00:13]} Na5 {[%clk
00:00:39]} {[%emt 00:00:20]} 20. Qb4 {[%clk 00:01:01]} fxe4 {[%clk 00:00:24]}
{[%emt 00:00:18]} 21. Qxe4 {[%clk 00:01:01]} {[%emt 00:00:01]} g6 {[%clk
00:00:21]} {[%emt 00:00:04]} 22. Qxe6+ {[%clk 00:01:00]} {[%emt 00:00:03]} Qxe6
{[%clk 00:00:16]} {[%emt 00:00:07]} 23. dxe6 {[%clk 00:01:01]} {[%emt
00:00:01]} Kg7 {[%clk 00:00:12]} {[%emt 00:00:06]} 24. Nd4 {[%clk 00:00:59]}
{[%emt 00:00:04]} Nc4 {[%clk 00:00:08]} {[%emt 00:00:06]} 25. Bxc4 {[%clk
00:00:57]} {[%emt 00:00:04]} bxc4 {[%clk 00:00:10]} 26. e7 {[%clk 00:00:54]}
{[%emt 00:00:05]} Rfe8 {[%clk 00:00:10]} {[%emt 00:00:01]} 27. Ne6+ {[%clk
00:00:55]} Kf6 {[%clk 00:00:10]} {[%emt 00:00:02]} 28. Nc7 {[%clk 00:00:56]}
Rxe7 {[%clk 00:00:09]} {[%emt 00:00:04]} 29. Rxe7 {[%clk 00:00:56]} {[%emt
00:00:02]} Kxe7 {[%clk 00:00:10]} 30. Nxa8 {[%clk 00:00:57]} {[%emt 00:00:01]}
Bxa8 {[%clk 00:00:11]} {[%emt 00:00:01]} 31. f3 {[%clk 00:00:52]} {[%emt
00:00:06]} Ke6 {[%clk 00:00:11]} {[%emt 00:00:03]} 32. Ke2 {[%clk 00:00:53]}
{[%emt 00:00:01]} Ke5 {[%clk 00:00:11]} {[%emt 00:00:02]} 33. Ke3 {[%clk
00:00:54]} Bc6 {[%clk 00:00:10]} {[%emt 00:00:04]} 34. Rc1 {[%clk 00:00:54]}
{[%emt 00:00:02]} Kd5 {[%clk 00:00:09]} {[%emt 00:00:03]} 35. Rd1+ {[%clk
00:00:44]} {[%emt 00:00:11]} Kc5 {[%clk 00:00:09]} {[%emt 00:00:01]} 36. Rd4
{[%clk 00:00:46]} d5 {[%clk 00:00:10]} {[%emt 00:00:02]} 37. g4 {[%clk
00:00:43]} {[%emt 00:00:04]} g5 {[%clk 00:00:10]} {[%emt 00:00:02]} 38. f4
{[%clk 00:00:42]} {[%emt 00:00:04]} gxf4+ {[%clk 00:00:11]} 39. Rxf4 {[%clk
00:00:43]} a5 {[%clk 00:00:10]} {[%emt 00:00:04]} 40. h4 {[%clk 00:00:38]}
{[%emt 00:00:07]} h6 {[%clk 00:00:04]} {[%emt 00:00:08]} 41. g5 {[%clk
00:00:38]} {[%emt 00:00:02]} hxg5 {[%clk 00:00:05]} {[%emt 00:00:01]} 42. hxg5
{[%clk 00:00:39]} Be8 {[%emt 00:00:02]} 43. Rf6 {[%clk 00:00:35]} {[%emt
00:00:05]} d4+ {[%clk 00:00:07]} {[%emt 00:00:01]} 44. Kd2 {[%clk 00:00:36]}
Kd5 {[%clk 00:00:05]} {[%emt 00:00:03]} 45. g6 {[%clk 00:00:36]} {[%emt
00:00:02]} Ke5 {[%clk 00:00:07]} {[%emt 00:00:01]} 46. g7 {[%clk 00:00:33]}
{[%emt 00:00:05]} 1-0

[Event "IV Pullman Blitz 2022"]
[Site "Riga, Latvia"]
[Date "2022.02.20"]
[Round "8.4"]
[White "Mustaps, Matiss"]
[Black "Laimins, Lauris"]
[Result "1-0"]
[TimeControl "180+2"]
[WhiteTitle "FM"]
[WhiteElo "2261"]
[BlackElo "2124"]

1. e4 {[%emt 00:14:36]} c6 {[%clk 00:03:02]} {[%emt 00:00:03]} 2. d4 {[%emt
00:00:02]} d5 3. Nc3 dxe4 {[%emt 00:00:02]} 4. Nxe4 {[%emt 00:00:01]} Bf5 5.
Ng3 {[%emt 00:00:01]} Bg6 6. Bc4 {[%clk 00:03:01]} {[%emt 00:00:07]} e6 {[%clk
00:03:06]} {[%emt 00:00:02]} 7. N1e2 Nd7 {[%emt 00:00:02]} 8. O-O {[%clk
00:03:02]} {[%emt 00:00:02]} Bd6 {[%emt 00:00:01]} 9. Nf4 {[%emt 00:00:06]} Ne7
{[%emt 00:00:01]} 10. Re1 {[%emt 00:00:09]} Bxf4 {[%emt 00:00:21]} 11. Bxf4
{[%emt 00:00:01]} O-O {[%emt 00:00:02]} 12. Ne4 {[%emt 00:00:16]} Nd5 {[%emt
00:00:03]} 13. Bd6 {[%emt 00:00:23]} Re8 {[%emt 00:00:05]} 14. c3 {[%emt
00:00:04]} b5 {[%emt 00:00:04]} 15. Bb3 a5 {[%emt 00:00:03]} 16. a4 {[%emt
00:00:01]} b4 {[%emt 00:00:05]} 17. c4 {[%emt 00:00:01]} N5f6 18. Ng3 {[%emt
00:00:15]} Qb6 {[%emt 00:00:08]} 19. c5 {[%emt 00:00:05]} Qd8 {[%emt 00:00:05]}
20. h4 {[%emt 00:00:04]} h5 {[%emt 00:00:06]} 21. Qf3 {[%emt 00:00:23]} Nd5
{[%emt 00:00:07]} 22. Nxh5 {[%emt 00:00:02]} Qxh4 {[%emt 00:00:01]} 23. Nf4
{[%emt 00:00:06]} Nxf4 {[%clk 00:02:12]} {[%emt 00:00:10]} 24. Bxf4 {[%clk
00:01:37]} {[%emt 00:00:02]} Rac8 {[%clk 00:02:11]} {[%emt 00:00:03]} 25. Rad1
{[%clk 00:01:34]} {[%emt 00:00:05]} Nf6 {[%clk 00:02:12]} {[%emt 00:00:01]} 26.
Bg3 {[%clk 00:01:30]} {[%emt 00:00:07]} Qg5 {[%clk 00:02:11]} {[%emt 00:00:02]}
27. Re5 {[%clk 00:01:26]} {[%emt 00:00:06]} Qh6 {[%clk 00:02:09]} {[%emt
00:00:03]} 28. Bf4 {[%clk 00:01:27]} {[%emt 00:00:03]} Qh7 {[%clk 00:02:11]} 29.
Rde1 {[%clk 00:01:23]} {[%emt 00:00:06]} Nd5 {[%clk 00:02:10]} {[%emt
00:00:02]} 30. Bxd5 {[%clk 00:01:24]} {[%emt 00:00:02]} cxd5 {[%clk 00:02:10]}
{[%emt 00:00:02]} 31. Qxd5 {[%clk 00:01:25]} {[%emt 00:00:01]} Red8 {[%clk
00:02:07]} {[%emt 00:00:05]} 32. Qb7 {[%clk 00:01:08]} {[%emt 00:00:18]} Qh4
{[%clk 00:02:03]} {[%emt 00:00:06]} 33. Bg5 {[%clk 00:01:08]} {[%emt 00:00:03]}
Qxd4 {[%clk 00:02:00]} {[%emt 00:00:05]} 34. Bxd8 {[%clk 00:01:08]} {[%emt
00:00:01]} Rxd8 {[%emt 00:00:03]} 35. c6 1-0

[Event "IV Pullman Blitz 2022"]
[Site "Riga, Latvia"]
[Date "2022.02.20"]
[Round "9.1"]
[White "Golubovskis, Maksims"]
[Black "Antoms, Guntars"]
[Result "1-0"]
[TimeControl "180+2"]
[WhiteTitle "FM"]
[BlackTitle "IM"]
[WhiteElo "2066"]
[BlackElo "2231"]

1. e4 {[%clk 00:03:04]} d5 {[%clk 00:03:04]} {[%emt 00:00:01]} 2. exd5 {[%clk
00:03:05]} {[%emt 00:00:01]} Qxd5 {[%clk 00:03:05]} {[%emt 00:00:01]} 3. Nc3
{[%clk 00:03:06]} Qd8 {[%clk 00:03:06]} 4. d4 {[%clk 00:03:07]} {[%emt
00:00:01]} Nf6 {[%clk 00:03:07]} {[%emt 00:00:01]} 5. Nf3 {[%clk 00:03:08]} Bg4
{[%clk 00:03:08]} 6. Be2 {[%clk 00:02:58]} {[%emt 00:00:12]} e6 {[%clk
00:03:04]} {[%emt 00:00:06]} 7. h3 {[%clk 00:02:54]} {[%emt 00:00:04]} Bxf3
{[%clk 00:03:05]} {[%emt 00:00:03]} 8. Bxf3 {[%clk 00:02:55]} c6 {[%clk
00:03:06]} {[%emt 00:00:02]} 9. O-O {[%clk 00:02:54]} {[%emt 00:00:04]} Nbd7
{[%clk 00:02:52]} {[%emt 00:00:15]} 10. Qe2 {[%clk 00:02:53]} {[%emt 00:00:03]}
Be7 {[%clk 00:02:48]} {[%emt 00:00:06]} 11. Rd1 {[%clk 00:02:46]} {[%emt
00:00:08]} O-O {[%clk 00:02:47]} {[%emt 00:00:03]} 12. Ne4 {[%clk 00:02:48]}
Nxe4 {[%clk 00:02:44]} {[%emt 00:00:06]} 13. Qxe4 {[%clk 00:02:49]} {[%emt
00:00:01]} Nf6 {[%clk 00:02:44]} {[%emt 00:00:03]} 14. Qe2 {[%clk 00:02:50]} a5
{[%clk 00:02:42]} {[%emt 00:00:05]} 15. c4 {[%clk 00:02:42]} {[%emt 00:00:10]}
a4 {[%emt 00:00:02]} 16. Rb1 Qc7 {[%clk 00:02:29]} {[%emt 00:00:14]} 17. b4
{[%clk 00:02:28]} {[%emt 00:00:19]} axb3 {[%clk 00:02:27]} {[%emt 00:00:04]} 18.
axb3 {[%clk 00:02:29]} Rfd8 {[%clk 00:02:03]} {[%emt 00:00:26]} 19. Be3 {[%clk
00:01:43]} {[%emt 00:00:48]} Ra3 {[%clk 00:01:58]} {[%emt 00:00:07]} 20. b4
{[%clk 00:01:38]} {[%emt 00:00:08]} b5 {[%clk 00:01:37]} {[%emt 00:00:23]} 21.
cxb5 {[%clk 00:01:35]} {[%emt 00:00:05]} cxb5 {[%clk 00:01:38]} {[%emt
00:00:01]} 22. Qxb5 {[%clk 00:01:29]} {[%emt 00:00:08]} Rb8 {[%clk 00:01:37]}
{[%emt 00:00:03]} 23. Qe2 {[%clk 00:01:03]} {[%emt 00:00:28]} h6 {[%clk
00:01:22]} {[%emt 00:00:17]} 24. b5 {[%clk 00:00:58]} {[%emt 00:00:07]} Nd5
{[%clk 00:01:19]} {[%emt 00:00:04]} 25. Bxd5 {[%clk 00:00:51]} {[%emt
00:00:09]} exd5 {[%clk 00:01:20]} {[%emt 00:00:01]} 26. Rdc1 {[%clk 00:00:52]}
Qb7 {[%clk 00:00:57]} {[%emt 00:00:25]} 27. Bf4 {[%clk 00:00:45]} {[%emt
00:00:09]} Bg5 {[%clk 00:00:31]} {[%emt 00:00:28]} 28. Bxb8 {[%clk 00:00:34]}
{[%emt 00:00:13]} Bxc1 {[%clk 00:00:32]} {[%emt 00:00:01]} 29. Qe8+ {[%clk
00:00:34]} {[%emt 00:00:02]} Kh7 {[%clk 00:00:33]} {[%emt 00:00:01]} 30. Rxc1
{[%clk 00:00:36]} Ra8 {[%clk 00:00:33]} {[%emt 00:00:02]} 31. Rc8 {[%clk
00:00:36]} {[%emt 00:00:02]} Kg6 {[%clk 00:00:26]} {[%emt 00:00:09]} 32. Qc6+
{[%clk 00:00:34]} {[%emt 00:00:03]} 1-0

[Event "IV Pullman Blitz 2022"]
[Site "Riga, Latvia"]
[Date "2022.02.20"]
[Round "9.2"]
[White "Gorozhankina, Julia"]
[Black "Batashevs, Arsens"]
[Result "0-1"]
[TimeControl "180+2"]
[WhiteTitle "WFM"]
[WhiteElo "2033"]
[BlackElo "2113"]

1. e4 {[%clk 00:03:04]} {[%emt 00:01:25]} g6 {[%clk 00:03:04]} 2. d4 {[%clk
00:03:05]} Bg7 {[%clk 00:03:05]} 3. Nc3 {[%clk 00:03:06]} c5 {[%clk 00:03:07]}
4. Nf3 {[%clk 00:03:04]} {[%emt 00:00:04]} cxd4 {[%clk 00:03:08]} 5. Nxd4
{[%clk 00:03:05]} Nc6 {[%clk 00:03:09]} 6. Be3 {[%clk 00:03:01]} {[%emt
00:00:06]} d6 {[%clk 00:03:11]} 7. Be2 {[%clk 00:02:54]} {[%emt 00:00:10]} Nf6
{[%clk 00:03:11]} 8. O-O {[%clk 00:02:52]} {[%emt 00:00:04]} a6 {[%clk
00:03:12]} {[%emt 00:00:02]} 9. a4 {[%clk 00:02:50]} {[%emt 00:00:04]} Qc7
{[%clk 00:03:12]} {[%emt 00:00:02]} 10. Qd2 {[%clk 00:02:40]} {[%emt 00:00:11]}
O-O {[%clk 00:03:09]} {[%emt 00:00:04]} 11. f3 {[%clk 00:02:39]} {[%emt
00:00:03]} Bd7 {[%clk 00:02:52]} {[%emt 00:00:20]} 12. Rac1 {[%clk 00:02:33]}
{[%emt 00:00:08]} Rac8 {[%clk 00:02:49]} {[%emt 00:00:05]} 13. Rfd1 {[%clk
00:02:06]} {[%emt 00:00:29]} Ne5 {[%clk 00:02:45]} {[%emt 00:00:06]} 14. Bh6
{[%clk 00:01:33]} {[%emt 00:00:35]} Nc4 {[%clk 00:02:46]} {[%emt 00:00:01]} 15.
Bxc4 {[%clk 00:01:33]} {[%emt 00:00:01]} Qxc4 {[%clk 00:02:46]} {[%emt
00:00:01]} 16. Bxg7 {[%clk 00:01:34]} Kxg7 {[%clk 00:02:47]} {[%emt 00:00:01]}
17. Ra1 {[%clk 00:01:25]} {[%emt 00:00:11]} Rc7 {[%clk 00:01:54]} {[%emt
00:00:55]} 18. Nde2 {[%clk 00:01:02]} {[%emt 00:00:25]} Rfc8 {[%clk 00:01:43]}
{[%emt 00:00:12]} 19. Rdc1 {[%emt 00:00:28]} b5 {[%clk 00:01:38]} {[%emt
00:00:07]} 20. axb5 {[%clk 00:00:37]} {[%emt 00:00:02]} axb5 {[%clk 00:01:39]}
21. Nd5 {[%clk 00:00:29]} {[%emt 00:00:10]} Nxd5 {[%clk 00:01:39]} {[%emt
00:00:02]} 22. exd5 {[%clk 00:00:30]} Rc5 {[%clk 00:00:56]} {[%emt 00:00:45]}
23. Qd4+ {[%clk 00:00:07]} {[%emt 00:00:25]} Qxd4+ {[%clk 00:00:56]} {[%emt
00:00:02]} 24. Nxd4 {[%clk 00:00:08]} Rxd5 {[%clk 00:00:56]} {[%emt 00:00:03]}
25. c3 {[%clk 00:00:08]} {[%emt 00:00:03]} Bf5 {[%clk 00:00:34]} {[%emt
00:00:23]} 26. Re1 {[%clk 00:00:07]} {[%emt 00:00:02]} e5 {[%clk 00:00:31]}
{[%emt 00:00:05]} 27. Nxf5+ {[%clk 00:00:05]} {[%emt 00:00:05]} gxf5 {[%clk
00:00:32]} 28. Ra5 {[%clk 00:00:04]} {[%emt 00:00:02]} Kf6 {[%clk 00:00:27]}
{[%emt 00:00:07]} 29. Re2 {[%emt 00:00:05]} 0-1

[Event "IV Pullman Blitz 2022"]
[Site "Riga, Latvia"]
[Date "2022.02.20"]
[Round "9.3"]
[White "Kretainis, Kristaps"]
[Black "Berzinsh, Roland"]
[Result "1-0"]
[TimeControl "180+2"]
[BlackTitle "IM"]
[WhiteElo "2101"]
[BlackElo "2285"]

1. Nf3 {[%clk 00:03:02]} {[%emt 00:02:39]} d5 {[%clk 00:03:00]} {[%emt
00:00:25]} 2. b3 {[%clk 00:03:04]} {[%emt 00:00:01]} Nf6 {[%clk 00:02:59]}
{[%emt 00:00:03]} 3. Bb2 {[%clk 00:03:06]} e6 {[%clk 00:03:00]} 4. e3 {[%clk
00:03:04]} {[%emt 00:00:04]} Be7 {[%clk 00:03:01]} 5. Ne5 {[%clk 00:03:04]}
{[%emt 00:00:02]} O-O {[%clk 00:03:00]} {[%emt 00:00:04]} 6. f4 {[%clk
00:03:05]} c5 {[%clk 00:02:58]} {[%emt 00:00:04]} 7. Be2 {[%clk 00:02:59]}
{[%emt 00:00:08]} Nfd7 {[%clk 00:02:47]} {[%emt 00:00:14]} 8. O-O {[%clk
00:02:59]} {[%emt 00:00:02]} Nxe5 {[%clk 00:02:46]} {[%emt 00:00:03]} 9. fxe5
{[%clk 00:03:00]} {[%emt 00:00:01]} Nc6 {[%clk 00:02:46]} {[%emt 00:00:02]} 10.
Qe1 {[%clk 00:03:00]} {[%emt 00:00:02]} f6 {[%clk 00:02:31]} {[%emt 00:00:17]}
11. exf6 {[%clk 00:02:50]} {[%emt 00:00:11]} Bxf6 {[%clk 00:02:33]} 12. Bxf6
{[%clk 00:02:50]} {[%emt 00:00:02]} Rxf6 {[%clk 00:02:33]} {[%emt 00:00:01]} 13.
Nc3 {[%clk 00:02:49]} {[%emt 00:00:03]} Bd7 {[%clk 00:02:31]} {[%emt 00:00:04]}
14. Bg4 {[%clk 00:02:45]} {[%emt 00:00:06]} Ne5 {[%clk 00:02:26]} {[%emt
00:00:07]} 15. Qg3 {[%clk 00:02:38]} {[%emt 00:00:08]} Nxg4 {[%clk 00:02:13]}
{[%emt 00:00:15]} 16. Qxg4 {[%clk 00:02:39]} {[%emt 00:00:01]} Bc6 {[%clk
00:02:05]} {[%emt 00:00:10]} 17. Rxf6 {[%clk 00:02:29]} {[%emt 00:00:13]} Qxf6
{[%clk 00:02:06]} 18. Rf1 {[%clk 00:02:29]} {[%emt 00:00:02]} Qe7 {[%clk
00:02:08]} 19. Ne2 {[%clk 00:02:26]} {[%emt 00:00:06]} Rf8 {[%clk 00:01:51]}
{[%emt 00:00:18]} 20. Rxf8+ {[%clk 00:02:26]} {[%emt 00:00:02]} Kxf8 {[%clk
00:01:52]} 21. Nf4 {[%clk 00:02:22]} {[%emt 00:00:06]} Bd7 {[%clk 00:01:31]}
{[%emt 00:00:24]} 22. Qh5 {[%clk 00:02:17]} {[%emt 00:00:07]} g5 {[%clk
00:01:18]} {[%emt 00:00:15]} 23. Nd3 {[%clk 00:02:11]} {[%emt 00:00:08]} b6
{[%clk 00:01:08]} {[%emt 00:00:13]} 24. Ne5 {[%clk 00:02:08]} {[%emt 00:00:04]}
Be8 {[%clk 00:01:09]} 25. Qh6+ {[%clk 00:02:03]} {[%emt 00:00:08]} Qg7 {[%clk
00:01:10]} {[%emt 00:00:01]} 26. Qxe6 {[%clk 00:02:03]} {[%emt 00:00:02]} d4
{[%clk 00:00:51]} {[%emt 00:00:21]} 27. exd4 {[%clk 00:01:59]} {[%emt
00:00:05]} cxd4 {[%clk 00:00:52]} 28. Qd6+ {[%clk 00:01:59]} {[%emt 00:00:02]}
Qe7 {[%clk 00:00:42]} {[%emt 00:00:12]} 29. Qxd4 {[%clk 00:01:59]} {[%emt
00:00:02]} Qe6 {[%clk 00:00:39]} {[%emt 00:00:05]} 30. h3 {[%clk 00:01:54]}
{[%emt 00:00:07]} Qf5 {[%clk 00:00:35]} {[%emt 00:00:07]} 31. Qf2 {[%clk
00:01:53]} {[%emt 00:00:02]} 1-0